bitfinex-derivatives/quotes_BTCF0:USTF0_20250911
["timestamp","ask_amount","ask_price","bid_price","bid_amount"]
[1757575200603,1.16376382,114060.0,114050.0,0.04245102]
[1757575200899,1.16376382,114060.0,114050.0,0.17944514]
[1757575201301,1.16376382,114060.0,114050.0,0.04245102]
[1757575201498,1.16376382,114060.0,114050.0,0.17944514]
[1757575202201,1.16376382,114060.0,114050.0,0.31643926]
[1757575202499,0.79769353,114060.0,114050.0,0.65409656]
[1757575202700,0.3608,114070.0,114060.0,0.03508]
[1757575202892,1.17284,114070.0,114060.0,0.30906824]
[1757575204402,1.17384,114070.0,114060.0,0.31206824]
[1757575204902,1.17384,114070.0,114060.0,0.31406824]
[1757575205899,1.16356459,114070.0,114060.0,0.31406824]
[1757575207300,1.16356459,114070.0,114060.0,0.3230215]
[1757575207503,1.16356459,114070.0,114060.0,0.31406824]
[1757575209801,0.81304,114070.0,114060.0,1.01251784]
[1757575210003,0.81272,114070.0,114060.0,1.01251784]
[1757575210298,0.81272,114070.0,114060.0,1.1584275]
[1757575210502,0.79833608,114070.0,114060.0,1.7784275]
[1757575211094,0.81181102,114080.0,114070.0,0.122722]
[1757575211294,0.81181102,114080.0,114070.0,0.75751024]
[1757575212806,0.81181102,114080.0,114070.0,0.75851024]
[1757575213601,0.81181102,114080.0,114070.0,0.67086824]
[1757575213803,0.81181102,114080.0,114070.0,0.39888]
[1757575214002,0.81181102,114080.0,114070.0,0.67286824]
[1757575214199,0.81181102,114080.0,114070.0,0.39888]
[1757575214405,0.81181102,114080.0,114070.0,0.67286824]
[1757575216805,0.81181102,114080.0,114070.0,0.39888]
[1757575217109,0.81181102,114080.0,114070.0,0.67286824]
[1757575218108,0.81181102,114080.0,114070.0,0.39888]
[1757575218308,0.81181102,114080.0,114070.0,0.67286824]
[1757575223512,0.81181102,114080.0,114070.0,0.39888]
[1757575223711,0.81784503,114080.0,114070.0,0.67286824]
[1757575225311,0.81784503,114080.0,114070.0,0.39888]
[1757575225512,0.81784503,114080.0,114070.0,0.67286824]
[1757575227513,0.81784503,114080.0,114070.0,0.39888]
[1757575227702,0.81784503,114080.0,114070.0,0.67286824]
[1757575228416,0.81784503,114080.0,114070.0,0.39888]
[1757575228620,0.81784503,114080.0,114070.0,0.67286824]
[1757575229114,0.81784503,114080.0,114070.0,0.39888]
[1757575229314,0.81784503,114080.0,114070.0,0.67286824]
[1757575229513,0.81784503,114080.0,114070.0,0.39888]
[1757575230014,0.81784503,114080.0,114070.0,0.54463412]
[1757575230614,0.81784503,114080.0,114070.0,0.40764]
[1757575231414,0.81784503,114080.0,114070.0,0.68162824]
[1757575232513,0.81784503,114080.0,114070.0,0.54463412]
[1757575238022,0.00616503,114080.0,114070.0,0.54463412]
[1757575238223,0.81676503,114080.0,114070.0,0.54463412]
[1757575240026,0.81676503,114080.0,114070.0,0.40764]
[1757575240324,0.81676503,114080.0,114070.0,0.54463412]
[1757575246234,0.00616503,114080.0,114070.0,0.54463412]
[1757575246633,0.81648503,114080.0,114070.0,0.54463412]
[1757575247737,0.00616503,114080.0,114070.0,0.54463412]
[1757575247936,0.81648503,114080.0,114070.0,0.54463412]
[1757575250040,0.81648503,114080.0,114070.0,0.40764]
[1757575250336,0.00616503,114080.0,114070.0,0.54463412]
[1757575250539,0.81636503,114080.0,114070.0,0.68162824]
[1757575251036,0.80198215,114080.0,114070.0,0.68162824]
[1757575251334,0.57608555,114090.0,114080.0,0.01269]
[1757575251539,1.38624555,114090.0,114080.0,0.30868824]
[1757575251732,1.38624555,114090.0,114080.0,0.0347]
[1757575251932,1.38624555,114090.0,114080.0,0.30868824]
[1757575252132,0.57608555,114090.0,114080.0,0.30868824]
[1757575252332,1.38624555,114090.0,114080.0,0.30868824]
[1757575252533,1.38724555,114090.0,114080.0,0.30868824]
[1757575252734,1.38724555,114090.0,114080.0,0.0347]
[1757575252935,1.38824555,114090.0,114080.0,0.30868824]
[1757575253441,1.38824555,114090.0,114080.0,0.31744824]
[1757575253636,1.38824555,114090.0,114080.0,0.04346]
[1757575253837,1.38824555,114090.0,114080.0,0.31744824]
[1757575260246,0.44109143,114090.0,114080.0,0.31744824]
[1757575260451,1.25093143,114090.0,114080.0,0.22603084]
[1757575261046,0.44109143,114090.0,114080.0,0.22603084]
[1757575261254,0.002,114090.0,114080.0,0.58683084]
[1757575261452,0.8098,114090.0,114080.0,0.58683084]
[1757575261952,0.8098,114090.0,114080.0,0.59555432]
[1757575262156,0.79952767,114090.0,114080.0,0.59555432]
[1757575262849,0.06897151,114100.0,114080.0,0.59555432]
[1757575263045,0.45208542,114110.0,114090.0,0.12598542]
[1757575263244,0.80972,114100.0,114090.0,0.0347]
[1757575264052,0.3608,114110.0,114100.0,0.0347]
[1757575264256,1.17148,114110.0,114100.0,0.0347]
[1757575264556,1.26276542,114110.0,114100.0,0.12598542]
[1757575264758,1.26176542,114110.0,114100.0,0.12598542]
[1757575264952,1.26176542,114110.0,114100.0,0.0347]
[1757575265254,1.17048,114110.0,114100.0,0.0347]
[1757575265455,1.26176542,114110.0,114100.0,0.0347]
[1757575265649,1.26276542,114110.0,114100.0,0.0347]
[1757575266361,1.27257886,114110.0,114100.0,0.0347]
[1757575266956,1.25042,114110.0,114100.0,0.0347]
[1757575267150,1.34170542,114110.0,114100.0,0.0347]
[1757575268855,1.34170542,114110.0,114100.0,0.12598542]
[1757575270759,1.25042,114110.0,114100.0,0.12598542]
[1757575270946,1.34170542,114110.0,114100.0,0.12598542]
[1757575272158,1.33143316,114110.0,114100.0,0.12598542]
[1757575273461,1.33143316,114110.0,114100.0,0.13474542]
[1757575274454,0.98090542,114110.0,114100.0,0.13474542]
[1757575274647,1.34170542,114110.0,114100.0,0.13474542]
[1757575274959,1.34170542,114110.0,114100.0,0.04346]
[1757575275457,1.34170542,114110.0,114100.0,0.02145]
[1757575275652,1.34170542,114110.0,114100.0,0.00876]
[1757575279759,1.34170542,114110.0,114100.0,0.02145]
[1757575281462,1.25042,114110.0,114100.0,0.02145]
[1757575281666,1.34170542,114110.0,114100.0,0.02145]
[1757575281965,1.25042,114110.0,114100.0,0.02145]
[1757575282159,1.34170542,114110.0,114100.0,0.02145]
[1757575282563,1.25042,114110.0,114100.0,0.02145]
[1757575282871,1.34170542,114110.0,114100.0,0.02145]
[1757575286968,1.3314326,114110.0,114100.0,0.02145]
[1757575287170,1.24014718,114110.0,114100.0,0.02145]
[1757575287469,1.3314326,114110.0,114100.0,0.02145]
[1757575290572,1.24014718,114110.0,114100.0,0.02145]
[1757575290870,1.3314326,114110.0,114100.0,0.02145]
[1757575291070,1.3314326,114110.0,114100.0,0.04423]
[1757575292675,0.53202542,114110.0,114100.0,0.04423]
[1757575292874,1.24942,114110.0,114100.0,0.04423]
[1757575293074,1.34070542,114110.0,114100.0,0.04423]
[1757575293273,1.34070542,114110.0,114100.0,0.13551542]
[1757575293474,1.34070542,114110.0,114100.0,0.04423]
[1757575293675,1.34070542,114110.0,114100.0,0.13551542]
[1757575295677,1.24942,114110.0,114100.0,0.13551542]
[1757575295877,1.34070542,114110.0,114100.0,0.13551542]
[1757575296879,1.24942,114110.0,114100.0,0.13551542]
[1757575297082,1.34070542,114110.0,114100.0,0.13551542]
[1757575297379,1.34070542,114110.0,114100.0,0.04423]
[1757575303681,1.34070542,114110.0,114100.0,0.13551542]
[1757575303882,0.44074,114110.0,114100.0,0.13551542]
[1757575304075,0.44074,114110.0,114100.0,0.22680084]
[1757575304374,1.2491,114110.0,114100.0,0.38551542]
[1757575306385,0.07112656,114110.0,114100.0,0.47680084]
[1757575306691,0.002,114110.0,114100.0,0.65570596]
[1757575306984,0.81028,114110.0,114100.0,0.56442054]
[1757575307182,0.81028,114110.0,114100.0,0.92522054]
[1757575307382,0.80000959,114110.0,114100.0,0.92522054]
[1757575307785,0.80000959,114110.0,114100.0,0.7426497]
[1757575308000,0.80000959,114110.0,114100.0,0.92522054]
[1757575308484,0.78563101,114110.0,114100.0,0.92522054]
[1757575310390,0.87759388,114120.0,114100.0,0.92522054]
[1757575310591,0.87759388,114120.0,114110.0,0.12734542]
[1757575311691,0.87759388,114120.0,114110.0,0.13610542]
[1757575311892,0.87959388,114120.0,114110.0,0.13610542]
[1757575313191,0.88159388,114120.0,114110.0,0.13610542]
[1757575313393,0.88159388,114120.0,114110.0,0.04482]
[1757575313597,0.88159388,114120.0,114110.0,0.13610542]
[1757575313788,0.87959388,114120.0,114110.0,0.22739084]
[1757575313993,0.88159388,114120.0,114110.0,0.22739084]
[1757575314193,0.88159388,114120.0,114110.0,0.13610542]
[1757575315093,0.8122,114120.0,114110.0,0.58819084]
[1757575315690,0.8122,114120.0,114110.0,0.60819084]
[1757575316600,0.8122,114120.0,114110.0,0.58819084]
[1757575316800,0.8102,114120.0,114110.0,0.58819084]
[1757575316995,0.8082,114120.0,114110.0,0.58819084]
[1757575317194,0.8082,114120.0,114110.0,0.58919084]
[1757575319797,0.07144078,114130.0,114120.0,0.01383]
[1757575320000,0.80784,114130.0,114120.0,0.21893084]
[1757575321001,0.80884,114130.0,114120.0,0.21893084]
[1757575321601,0.80984,114130.0,114120.0,0.21893084]
[1757575322302,0.002,114130.0,114120.0,0.3100068]
[1757575322502,0.80976,114130.0,114120.0,0.3100068]
[1757575323703,0.87887444,114130.0,114120.0,0.3100068]
[1757575326807,0.87887444,114130.0,114120.0,0.3187668]
[1757575331114,0.87887444,114130.0,114120.0,0.04512]
[1757575331712,0.87887444,114130.0,114120.0,0.3187668]
[1757575332708,0.87887444,114130.0,114120.0,0.04512]
[1757575333009,0.87887444,114130.0,114120.0,0.1819434]
[1757575333203,0.87887444,114130.0,114120.0,0.04512]
[1757575333408,0.87887444,114130.0,114120.0,0.3187668]
[1757575336913,1.01569784,114130.0,114120.0,0.3187668]
[1757575337115,0.87887444,114130.0,114120.0,0.3187668]
[1757575337317,1.01569784,114130.0,114120.0,0.3187668]
[1757575337515,0.87887444,114130.0,114120.0,0.3187668]
[1757575337715,1.01569784,114130.0,114120.0,0.3187668]
[1757575338117,0.87887444,114130.0,114120.0,0.3187668]
[1757575338517,1.01569784,114130.0,114120.0,0.3187668]
[1757575339219,0.87887444,114130.0,114120.0,0.3187668]
[1757575339419,1.01569784,114130.0,114120.0,0.3187668]
[1757575339717,0.87887444,114130.0,114120.0,0.3187668]
[1757575339917,1.01569784,114130.0,114120.0,0.3187668]
[1757575340411,0.87887444,114130.0,114120.0,0.3187668]
[1757575340717,1.01569784,114130.0,114120.0,0.3187668]
[1757575341514,1.01369784,114130.0,114120.0,0.3187668]
[1757575341719,1.00132049,114130.0,114120.0,0.3187668]
[1757575342118,1.00132049,114130.0,114120.0,0.04512]
[1757575342318,1.00132049,114130.0,114120.0,0.3187668]
[1757575346623,0.86449709,114130.0,114120.0,0.3187668]
[1757575346822,1.00132049,114130.0,114120.0,0.3187668]
[1757575348925,1.00132049,114130.0,114120.0,0.04512]
[1757575349222,1.00132049,114130.0,114120.0,0.3187668]
[1757575351925,0.86449709,114130.0,114120.0,0.3187668]
[1757575352223,1.00132049,114130.0,114120.0,0.3187668]
[1757575353926,1.00132049,114130.0,114120.0,0.04512]
[1757575354123,1.36212049,114130.0,114120.0,0.04512]
[1757575354324,1.36212049,114130.0,114120.0,0.3187668]
[1757575354524,1.36212049,114130.0,114120.0,0.04512]
[1757575354719,1.36212049,114130.0,114120.0,0.3187668]
[1757575355926,1.36212049,114130.0,114120.0,0.04512]
[1757575356127,1.36212049,114130.0,114120.0,0.3187668]
[1757575356926,1.36212049,114130.0,114120.0,0.3197668]
[1757575357315,1.36212049,114130.0,114120.0,0.04612]
[1757575357515,1.36212049,114130.0,114120.0,0.3197668]
[1757575357924,1.22529709,114130.0,114120.0,0.3197668]
[1757575358126,1.36212049,114130.0,114120.0,0.3197668]
[1757575359928,1.36212049,114130.0,114120.0,0.04612]
[1757575360129,1.36212049,114130.0,114120.0,0.3197668]
[1757575363230,1.22529709,114130.0,114120.0,0.3197668]
[1757575363420,1.36212049,114130.0,114120.0,0.3197668]
[1757575363828,1.22529709,114130.0,114120.0,0.3197668]
[1757575364028,1.36212049,114130.0,114120.0,0.3197668]
[1757575365528,1.22529709,114130.0,114120.0,0.3197668]
[1757575365828,1.36212049,114130.0,114120.0,0.3197668]
[1757575366229,1.36212049,114130.0,114120.0,0.04612]
[1757575366430,1.36212049,114130.0,114120.0,0.3197668]
[1757575368332,1.22529709,114130.0,114120.0,0.3197668]
[1757575368532,1.36212049,114130.0,114120.0,0.3197668]
[1757575369532,1.22529709,114130.0,114120.0,0.3197668]
[1757575369831,1.36212049,114130.0,114120.0,0.3197668]
[1757575370933,1.22529709,114130.0,114120.0,0.3197668]
[1757575371133,1.36212049,114130.0,114120.0,0.3197668]
[1757575372334,1.22529709,114130.0,114120.0,0.3197668]
[1757575372532,1.36212049,114130.0,114120.0,0.3197668]
[1757575372733,1.22529709,114130.0,114120.0,0.3197668]
[1757575372928,1.36212049,114130.0,114120.0,0.3197668]
[1757575373933,1.22529709,114130.0,114120.0,0.3197668]
[1757575374133,1.36212049,114130.0,114120.0,0.3197668]
[1757575382338,1.22529709,114130.0,114120.0,0.13734868]
[1757575385340,1.22529709,114130.0,114120.0,0.04612]
[1757575385539,1.22529709,114130.0,114120.0,0.13734868]
[1757575395951,1.22529709,114130.0,114120.0,0.04612]
[1757575396251,1.33730989,114130.0,114120.0,0.02359]
[1757575398552,1.33730989,114130.0,114120.0,0.04501]
[1757575400958,1.33730989,114130.0,114120.0,0.02359]
[1757575401258,1.69810989,114130.0,114120.0,0.02359]
[1757575404161,1.60688121,114130.0,114120.0,0.04533]
[1757575404357,1.69810989,114130.0,114120.0,0.02359]
[1757575404660,2.03933857,114130.0,114120.0,0.00976]
[1757575405454,2.03933857,114130.0,114110.0,0.00013102]
[1757575405758,0.54325736,114120.0,114110.0,0.00013102]
[1757575405960,1.16628,114120.0,114110.0,0.01284102]
[1757575406457,0.3608,114120.0,114110.0,0.01284102]
[1757575406654,1.16632,114120.0,114110.0,0.01284102]
[1757575406861,1.34877736,114120.0,114110.0,0.01284102]
[1757575407063,1.25754868,114120.0,114110.0,0.01284102]
[1757575407764,1.25754868,114120.0,114110.0,0.01384102]
[1757575407966,1.34877736,114120.0,114110.0,0.01384102]
[1757575408267,1.34877736,114120.0,114110.0,0.01484102]
[1757575409366,1.34877736,114120.0,114110.0,0.01584102]
[1757575410767,1.34877736,114120.0,114110.0,0.00313102]
[1757575412466,1.34877736,114120.0,114110.0,0.01584102]
[1757575413970,1.25754868,114120.0,114110.0,0.01584102]
[1757575414266,0.89674868,114120.0,114110.0,0.01584102]
[1757575414471,1.25754868,114120.0,114110.0,0.01584102]
[1757575416570,1.34877736,114120.0,114110.0,0.01584102]
[1757575418474,1.25754868,114120.0,114110.0,0.01584102]
[1757575418977,1.34877736,114120.0,114110.0,0.01584102]
[1757575421678,1.16632,114120.0,114110.0,0.01584102]
[1757575421977,1.25754868,114120.0,114110.0,0.01584102]
[1757575422473,1.34877736,114120.0,114110.0,0.01584102]
[1757575424881,1.25754868,114120.0,114110.0,0.01584102]
[1757575428287,0.3608,114120.0,114110.0,0.03758102]
[1757575428480,1.16604,114120.0,114110.0,0.03758102]
[1757575428677,1.25726868,114120.0,114110.0,0.03758102]
[1757575428874,1.166,114120.0,114110.0,0.1288097]
[1757575429286,1.166,114120.0,114110.0,0.03758102]
[1757575429484,1.166,114120.0,114110.0,0.1288097]
[1757575429677,1.166,114120.0,114110.0,0.03758102]
[1757575429987,1.25722868,114120.0,114110.0,0.1288097]
[1757575431479,0.89642868,114120.0,114110.0,0.1288097]
[1757575431680,1.25722868,114120.0,114110.0,0.1288097]
[1757575432381,1.166,114120.0,114110.0,0.1288097]
[1757575432687,1.25722868,114120.0,114110.0,0.1288097]
[1757575433787,1.25722868,114120.0,114110.0,0.03758102]
[1757575433983,1.166,114120.0,114110.0,0.1288097]
[1757575434489,1.25722868,114120.0,114110.0,0.1288097]
[1757575435390,1.166,114120.0,114110.0,0.03758102]
[1757575435579,1.25722868,114120.0,114110.0,0.03758102]
[1757575435775,1.25722868,114120.0,114110.0,0.1288097]
[1757575437388,1.25722868,114120.0,114110.0,0.03758102]
[1757575437687,1.25722868,114120.0,114110.0,0.1288097]
[1757575438291,1.25722868,114120.0,114110.0,0.03758102]
[1757575438484,1.25722868,114120.0,114110.0,0.1288097]
[1757575439885,0.3608,114120.0,114110.0,0.1288097]
[1757575440285,1.15150031,114120.0,114110.0,0.1288097]
[1757575440986,1.15150031,114120.0,114110.0,0.03758102]
[1757575441185,1.15150031,114120.0,114110.0,0.1288097]
[1757575442386,1.15150031,114120.0,114110.0,0.03758102]
[1757575442590,1.24272899,114120.0,114110.0,0.03758102]
[1757575443393,1.24272899,114120.0,114110.0,0.1288097]
[1757575443585,1.24272899,114120.0,114110.0,0.03758102]
[1757575443890,1.24272899,114120.0,114110.0,0.1288097]
[1757575444190,1.15150031,114120.0,114110.0,0.1288097]
[1757575444392,1.15150031,114120.0,114110.0,0.17446288]
[1757575444690,1.28838217,114120.0,114110.0,0.17446288]
[1757575446193,0.48330217,114120.0,114110.0,0.17446288]
[1757575446393,1.28834217,114120.0,114110.0,0.17446288]
[1757575446694,1.15146031,114120.0,114110.0,0.17446288]
[1757575446894,1.28834217,114120.0,114110.0,0.17446288]
[1757575448292,1.15146031,114120.0,114110.0,0.17446288]
[1757575448494,1.28834217,114120.0,114110.0,0.17446288]
[1757575449694,1.15146031,114120.0,114110.0,0.17446288]
[1757575449898,1.28834217,114120.0,114110.0,0.17446288]
[1757575451894,1.30272186,114120.0,114110.0,0.17446288]
[1757575456500,1.30264186,114120.0,114110.0,0.17446288]
[1757575457401,1.16576,114120.0,114110.0,0.17446288]
[1757575457603,1.30264186,114120.0,114110.0,0.17446288]
[1757575457998,0.3608,114120.0,114110.0,0.17446288]
[1757575458204,0.80496,114120.0,114110.0,0.31134474]
[1757575458600,0.80496,114120.0,114110.0,0.17446288]
[1757575464812,0.58758042,114130.0,114120.0,0.01299]
[1757575465013,1.39250042,114130.0,114120.0,0.30853372]
[1757575465714,1.39250042,114130.0,114120.0,0.03477]
[1757575466015,1.39250042,114130.0,114120.0,0.17165186]
[1757575466316,1.39250042,114130.0,114120.0,0.17265186]
[1757575467119,1.39250042,114130.0,114120.0,0.03577]
[1757575467308,1.39250042,114130.0,114120.0,0.17265186]
[1757575468517,1.03170042,114130.0,114120.0,0.17265186]
[1757575468819,1.39250042,114130.0,114120.0,0.17265186]
[1757575471217,1.25561856,114130.0,114120.0,0.03577]
[1757575471516,1.39250042,114130.0,114120.0,0.17265186]
[1757575472017,1.39250042,114130.0,114120.0,0.03577]
[1757575472205,1.39250042,114130.0,114120.0,0.17265186]
[1757575473316,1.39250042,114130.0,114120.0,0.03577]
[1757575473512,1.39250042,114130.0,114120.0,0.17265186]
[1757575473817,1.25561856,114130.0,114120.0,0.17265186]
[1757575474010,1.39250042,114130.0,114120.0,0.17265186]
[1757575476925,1.25561856,114130.0,114120.0,0.17265186]
[1757575477116,1.25561856,114130.0,114120.0,0.30953372]
[1757575477422,1.39250042,114130.0,114120.0,0.17265186]
[1757575477623,1.39250042,114130.0,114120.0,0.15087186]
[1757575477816,1.25561856,114130.0,114120.0,0.15087186]
[1757575478017,1.39250042,114130.0,114120.0,0.15087186]
[1757575478217,1.39250042,114130.0,114120.0,0.01399]
[1757575478418,1.25565856,114130.0,114120.0,0.01399]
[1757575478618,1.39254042,114130.0,114120.0,0.15087186]
[1757575479424,1.25565856,114130.0,114120.0,0.15087186]
[1757575479622,1.39254042,114130.0,114120.0,0.15087186]
[1757575483628,1.39254042,114130.0,114120.0,0.17265186]
[1757575488633,1.25565856,114130.0,114120.0,0.15087186]
[1757575488836,1.39254042,114130.0,114120.0,0.15087186]
[1757575490748,1.39254042,114130.0,114120.0,0.01399]
[1757575491337,1.39254042,114130.0,114120.0,0.15087186]
[1757575493539,1.39254042,114130.0,114120.0,0.01399]
[1757575493739,1.39254042,114130.0,114120.0,0.15087186]
[1757575497438,1.39254042,114130.0,114120.0,0.01399]
[1757575498042,1.39254042,114130.0,114120.0,0.15087186]
[1757575499546,1.39254042,114130.0,114120.0,0.01399]
[1757575499744,1.25565856,114130.0,114120.0,0.17393186]
[1757575499945,1.25565856,114130.0,114120.0,0.03705]
[1757575500145,1.39254042,114130.0,114120.0,0.03705]
[1757575500348,1.39254042,114130.0,114120.0,0.15087186]
[1757575501351,1.25565856,114130.0,114120.0,0.01399]
[1757575501548,1.39254042,114130.0,114120.0,0.15087186]
[1757575502052,1.39254042,114130.0,114120.0,0.01399]
[1757575502249,1.39254042,114130.0,114120.0,0.15087186]
[1757575503148,1.39254042,114130.0,114120.0,0.01399]
[1757575503446,1.39254042,114130.0,114110.0,0.00013102]
[1757575503447,1.91630414,114130.0,114110.0,0.00013102]
[1757575503652,0.77144558,114120.0,114110.0,1.02e-06]
[1757575503847,0.77144558,114120.0,114090.0,0.14957186]
[1757575504047,0.63456372,114100.0,114090.0,0.14957186]
[1757575505353,0.63456372,114100.0,114090.0,0.17263186]
[1757575505754,0.63556372,114100.0,114090.0,0.17663186]
[1757575505950,0.3618,114100.0,114090.0,0.17663186]
[1757575506251,0.63556372,114100.0,114090.0,0.17663186]
[1757575506452,0.45309244,114100.0,114090.0,0.03975]
[1757575506853,0.45309244,114100.0,114090.0,0.04275]
[1757575510459,0.45309244,114100.0,114090.0,0.13404244]
[1757575510658,0.45309244,114100.0,114090.0,0.11098244]
[1757575510958,0.45309244,114100.0,114090.0,0.01969]
[1757575512960,0.45309244,114100.0,114090.0,0.04275]
[1757575514261,0.45309244,114100.0,114090.0,0.13404244]
[1757575514662,1.25749244,114100.0,114090.0,0.13404244]
[1757575517867,1.25749244,114100.0,114090.0,0.04275]
[1757575518068,1.25749244,114100.0,114090.0,0.13404244]
[1757575519870,0.45309244,114100.0,114090.0,0.13404244]
[1757575520168,1.25745244,114100.0,114090.0,0.13404244]
[1757575526676,1.25745244,114100.0,114090.0,0.04275]
[1757575526876,1.25745244,114100.0,114090.0,0.13404244]
[1757575532083,1.16616,114100.0,114090.0,0.13404244]
[1757575532383,1.25745244,114100.0,114090.0,0.13404244]
[1757575532575,1.16616,114100.0,114090.0,0.13404244]
[1757575532883,1.25745244,114100.0,114090.0,0.13404244]
[1757575535285,1.16616,114100.0,114090.0,0.04275]
[1757575535586,1.25745244,114100.0,114090.0,0.13404244]
[1757575535984,1.25745244,114100.0,114090.0,0.04275]
[1757575536185,1.25745244,114100.0,114090.0,0.13404244]
[1757575537084,0.3618,114100.0,114090.0,0.13404244]
[1757575537384,1.25721244,114100.0,114090.0,0.13404244]
[1757575537786,1.25721244,114100.0,114090.0,0.04275]
[1757575538084,1.25721244,114100.0,114090.0,0.13404244]
[1757575544797,1.25721244,114100.0,114090.0,0.01969]
[1757575545106,1.32899732,114100.0,114090.0,0.007]
[1757575545292,1.23770488,114100.0,114070.0,0.01331]
[1757575545497,0.09129244,114080.0,114070.0,0.01331]
[1757575545686,1.26225244,114080.0,114070.0,0.01331]
[1757575546000,1.17148,114080.0,114070.0,0.01331]
[1757575546200,1.26277244,114080.0,114070.0,0.01331]
[1757575546696,1.26277244,114080.0,114070.0,0.12957244]
[1757575547201,1.17148,114080.0,114070.0,0.12957244]
[1757575547398,1.26277244,114080.0,114070.0,0.12957244]
[1757575547996,1.33426556,114080.0,114070.0,0.12957244]
[1757575548187,1.33526556,114080.0,114070.0,0.13057244]
[1757575548498,1.26377244,114080.0,114070.0,0.13057244]
[1757575548693,1.26377244,114080.0,114070.0,0.13257244]
[1757575549597,1.17248,114080.0,114070.0,0.13257244]
[1757575549798,1.17248,114080.0,114070.0,0.04128]
[1757575549998,1.18110514,114080.0,114070.0,0.13257244]
[1757575550902,1.27239758,114080.0,114070.0,0.13257244]
[1757575551500,1.18110514,114080.0,114070.0,0.13257244]
[1757575551801,0.37042514,114080.0,114070.0,0.13257244]
[1757575552098,1.18166514,114080.0,114070.0,0.13257244]
[1757575553604,0.37042514,114080.0,114070.0,0.13257244]
[1757575553900,1.34160869,114080.0,114070.0,0.13257244]
[1757575554498,1.25031625,114080.0,114070.0,0.13257244]
[1757575555501,1.34160869,114080.0,114070.0,0.13257244]
[1757575558105,0.53044869,114080.0,114070.0,0.13257244]
[1757575558310,1.34208869,114080.0,114070.0,0.13257244]
[1757575558907,1.34208869,114080.0,114070.0,0.04128]
[1757575559299,1.34208869,114080.0,114070.0,0.13257244]
[1757575560204,1.34208869,114080.0,114070.0,0.04128]
[1757575560406,0.53044869,114080.0,114070.0,0.13257244]
[1757575560908,1.25035625,114080.0,114070.0,0.13257244]
[1757575561109,1.34164869,114080.0,114070.0,0.13257244]
[1757575562108,1.25035625,114080.0,114070.0,0.13257244]
[1757575563110,1.34164869,114080.0,114070.0,0.13257244]
[1757575563712,1.25035625,114080.0,114070.0,0.13257244]
[1757575563916,1.34164869,114080.0,114070.0,0.13257244]
[1757575567011,1.34164869,114080.0,114070.0,0.04128]
[1757575567208,1.34164869,114080.0,114070.0,0.13257244]
[1757575568315,1.38732996,114080.0,114070.0,0.17825371]
[1757575571016,1.52430367,114080.0,114070.0,0.01831]
[1757575571217,1.77430367,114080.0,114070.0,0.01831]
[1757575572016,1.77430367,114080.0,114070.0,0.005]
[1757575573816,1.77430367,114080.0,114070.0,0.01851]
[1757575574317,0.96310367,114080.0,114070.0,0.01851]
[1757575574717,1.77222367,114080.0,114070.0,0.01851]
[1757575576717,0.96310367,114080.0,114070.0,0.01851]
[1757575576917,1.77218367,114080.0,114070.0,0.01851]
[1757575577117,0.96310367,114080.0,114070.0,0.01851]
[1757575577319,1.77194367,114080.0,114070.0,0.01851]
[1757575578919,1.77194367,114080.0,114070.0,0.005]
[1757575579618,0.96310367,114080.0,114070.0,0.005]
[1757575579822,1.77154367,114080.0,114070.0,0.005]
[1757575580824,0.96310367,114080.0,114070.0,0.005]
[1757575581024,1.77154367,114080.0,114070.0,0.005]
[1757575582725,1.77154367,114080.0,114070.0,0.01775]
[1757575582920,1.77134367,114080.0,114070.0,0.01775]
[1757575583722,0.96310367,114080.0,114070.0,0.01775]
[1757575583917,1.77134367,114080.0,114070.0,0.01775]
[1757575584322,0.96310367,114080.0,114070.0,0.01775]
[1757575584621,1.77110367,114080.0,114070.0,0.01775]
[1757575585024,1.77114367,114080.0,114070.0,0.01775]
[1757575585727,0.96314367,114080.0,114070.0,0.01775]
[1757575585923,1.77114367,114080.0,114070.0,0.01775]
[1757575586319,0.96314367,114080.0,114070.0,0.01775]
[1757575586518,1.77086367,114080.0,114070.0,0.01775]
[1757575588825,0.96314367,114080.0,114070.0,0.01775]
[1757575589028,1.77050367,114080.0,114070.0,0.01775]
[1757575589823,0.96314367,114080.0,114070.0,0.04004]
[1757575590029,1.77050367,114080.0,114070.0,0.04004]
[1757575590223,1.49655625,114080.0,114070.0,0.17701371]
[1757575590427,0.43919625,114080.0,114070.0,0.17701371]
[1757575590634,1.38328996,114080.0,114070.0,0.17701371]
[1757575591335,1.38328996,114080.0,114070.0,0.04004]
[1757575591531,1.38328996,114080.0,114070.0,0.17701371]
[1757575591934,1.52026367,114080.0,114070.0,0.17701371]
[1757575593434,1.52026367,114080.0,114070.0,0.15472371]
[1757575597641,1.52026367,114080.0,114070.0,0.01775]
[1757575597841,1.52026367,114080.0,114070.0,0.15472371]
[1757575598245,1.24631625,114080.0,114070.0,0.15472371]
[1757575598441,1.52026367,114080.0,114070.0,0.15472371]
[1757575599341,1.52026367,114080.0,114070.0,0.01775]
[1757575599542,1.52026367,114080.0,114070.0,0.15472371]
[1757575599844,1.52026367,114080.0,114070.0,0.01775]
[1757575600141,1.52026367,114080.0,114070.0,0.15472371]
[1757575600440,1.15946367,114080.0,114070.0,0.15472371]
[1757575600633,1.88106367,114080.0,114070.0,0.15472371]
[1757575602945,1.88106367,114080.0,114070.0,0.01775]
[1757575603146,1.88106367,114080.0,114070.0,0.15472371]
[1757575604244,1.88106367,114080.0,114070.0,0.01775]
[1757575604445,1.88106367,114080.0,114070.0,0.15472371]
[1757575605647,1.60711625,114080.0,114070.0,0.15472371]
[1757575605842,1.60711625,114080.0,114070.0,0.04004]
[1757575606052,1.88106367,114080.0,114070.0,0.17701371]
[1757575606447,1.60711625,114080.0,114070.0,0.17701371]
[1757575606643,1.88106367,114080.0,114070.0,0.17701371]
[1757575607747,1.88106367,114080.0,114070.0,0.04004]
[1757575607947,1.88106367,114080.0,114070.0,0.17701371]
[1757575609251,1.88106367,114080.0,114070.0,0.04004]
[1757575609448,1.88106367,114080.0,114070.0,0.17701371]
[1757575609944,1.60531625,114080.0,114070.0,0.17701371]
[1757575610151,1.74228996,114080.0,114070.0,0.17701371]
[1757575610645,1.60531625,114080.0,114070.0,0.17701371]
[1757575610850,1.74228996,114080.0,114070.0,0.17701371]
[1757575612948,1.87926367,114080.0,114070.0,0.04004]
[1757575613150,1.87926367,114080.0,114070.0,0.15472371]
[1757575613452,1.87926367,114080.0,114070.0,0.01775]
[1757575614152,1.87926367,114080.0,114070.0,0.15472371]
[1757575614654,1.87926367,114080.0,114070.0,0.17601371]
[1757575615848,1.74228996,114080.0,114070.0,0.17601371]
[1757575616049,1.87926367,114080.0,114070.0,0.17601371]
[1757575616648,1.07394367,114080.0,114070.0,0.17601371]
[1757575616851,1.74200996,114080.0,114070.0,0.17601371]